fUST/lending_fUST_20250219
["ID","MTS","AMOUNT","RATE_DAILY","PERIOD"]
[353532064,1739898652526,-500.0,0.00015013,2]
[353532066,1739898652536,-1171.12,0.00015013,2]
[353532068,1739898652546,-1514.71,0.00015013,2]
[353532070,1739898652555,-1010.39,0.00015013,2]
[353532072,1739898652565,-500.0,0.00015013,2]
[353532074,1739898652575,-7675.54,0.00015013,2]
[353532076,1739898652585,-500.89,0.00015013,2]
[353532078,1739898652594,-1053.24,0.00015013,2]
[353532080,1739898652604,-3173.76,0.00015013,2]
[353532082,1739898652614,-1063.36,0.00015013,2]
[353532084,1739898652623,-1647.22,0.00015013,2]
[353532086,1739898652633,-847.48,0.00015013,2]
[353532088,1739898652643,-949.76,0.00015013,2]
[353532090,1739898652652,-624.01,0.00015013,2]
[353532092,1739898652662,-794.33,0.00015013,2]
[353532094,1739898652672,-968.84,0.00015013,2]
[353532096,1739898652681,-2130.02,0.00015013,2]
[353532098,1739898652690,-500.0,0.00015013,2]
[353532100,1739898652700,-823.55,0.00015013,2]
[353532102,1739898652711,-150.27,0.00015045,2]
[353532104,1739898652720,-500.0,0.00015045,2]
[353532106,1739898652730,-500.0,0.00015045,2]
[353532108,1739898652739,-150.27,0.00015045,2]
[353532110,1739898652749,-500.0,0.00015045,2]
[353532112,1739898652759,-500.0,0.00015045,2]
[353532114,1739898652770,-500.0,0.00015045,2]
[353532116,1739898652779,-151.0,0.00015079,2]
[353532118,1739898652789,-945.88,0.00015095,2]
[353532120,1739898652800,-584.44,0.00015095,2]
[353532122,1739898652809,-500.0,0.00015095,2]
[353532124,1739898652819,-664.52,0.00015095,2]
[353532126,1739898652829,-500.0,0.00015095,2]
[353532128,1739898652839,-574.95,0.00015095,2]
[353532130,1739898652848,-702.57,0.00015095,2]
[353532132,1739898652858,-981.85,0.00015095,2]
[353532141,1739898652867,-500.0,0.00015095,2]
[353532144,1739898652947,-619.68,0.00015095,2]
[353532146,1739898652957,-682.0,0.00015095,2]
[353532148,1739898652967,-3548.2,0.00015095,2]
[353532150,1739898652977,-7845.41,0.00015095,2]
[353532152,1739898652987,-565.74,0.00015095,2]
[353532154,1739898652997,-1623.78,0.00015095,2]
[353532156,1739898653007,-1530.37,0.00015095,2]
[353532158,1739898653016,-765.7,0.00015095,2]
[353532160,1739898653026,-500.0,0.00015095,2]
[353532162,1739898653036,-631.0,0.00015095,2]
[353532164,1739898653046,-1020.78,0.00015095,2]
[353532166,1739898653056,-19999.28,0.00015095,2]
[353532168,1739898653067,-590.13,0.00015095,2]
[353532170,1739898653077,-1171.12,0.00015095,2]
[353532172,1739898653086,-1514.71,0.00015095,2]
[353532174,1739898653096,-1010.39,0.00015095,2]
[353532176,1739898653105,-500.0,0.00015095,2]
[353532178,1739898653115,-7675.54,0.00015095,2]
[353532180,1739898653125,-500.89,0.00015095,2]
[353532182,1739898653135,-1053.24,0.00015095,2]
[353532184,1739898653144,-3173.76,0.00015095,2]
[353532186,1739898653154,-1063.36,0.00015095,2]
[353532188,1739898653163,-1647.22,0.00015095,2]
[353532190,1739898653172,-847.48,0.00015095,2]
[353532192,1739898653181,-949.76,0.00015095,2]
[353532194,1739898653191,-624.01,0.00015095,2]
[353532196,1739898653200,-794.33,0.00015095,2]
[353532198,1739898653209,-968.84,0.00015095,2]
[353532200,1739898653219,-2130.02,0.00015095,2]
[353532202,1739898653228,-500.0,0.00015095,2]
[353532204,1739898653238,-823.55,0.00015095,2]
[353532206,1739898653248,-945.88,0.00015178,2]
[353532208,1739898653257,-584.44,0.00015178,2]
[353532210,1739898653267,-500.0,0.00015178,2]
[353532212,1739898653277,-664.52,0.00015178,2]
[353532214,1739898653286,-437.33600996,0.00015178,2]
[353532216,1739898653296,-574.95,0.00015178,2]
[353532218,1739898653305,-702.57,0.00015178,2]
[353532220,1739898653315,-981.85,0.00015178,2]
[353532222,1739898653324,-224.38,0.00015178,2]
[353532224,1739898653334,-619.68,0.00015178,2]
[353532226,1739898653343,-682.0,0.00015178,2]
[353532228,1739898653353,-3548.2,0.00015178,2]
[353532230,1739898653362,-7845.41,0.00015178,2]
[353532232,1739898653372,-565.74,0.00015178,2]
[353532234,1739898653382,-1623.78,0.00015178,2]
[353532236,1739898653392,-1530.37,0.00015178,2]
[353532238,1739898653402,-765.7,0.00015178,2]
[353532240,1739898653411,-239.56,0.00015178,2]
[353532242,1739898653421,-631.0,0.00015178,2]
[353532244,1739898653430,-1020.78,0.00015178,2]
[353532246,1739898653440,-19999.28,0.00015178,2]
[353532249,1739898653450,-1171.12,0.00015178,2]
[353532251,1739898653459,-1514.71,0.00015178,2]
[353532252,1739898653467,-1010.39,0.00015178,2]
[353532255,1739898653477,-500.0,0.00015178,2]
[353532257,1739898653486,-7675.54,0.00015178,2]
[353532258,1739898653496,-500.89,0.00015178,2]
[353532260,1739898653505,-1053.24,0.00015178,2]
[353532262,1739898653514,-3173.76,0.00015178,2]
[353532264,1739898653523,-1063.36,0.00015178,2]
[353532266,1739898653532,-1647.22,0.00015178,2]
[353532268,1739898653542,-847.48,0.00015178,2]
[353532271,1739898653552,-949.76,0.00015178,2]
[353532273,1739898653561,-624.01,0.00015178,2]
[353532275,1739898653571,-794.33,0.00015178,2]
[353532276,1739898653581,-968.84,0.00015178,2]
[353532277,1739898653590,-500.0,0.00015178,2]
[353532278,1739898653600,-2130.02,0.00015178,2]
[353532279,1739898653609,-823.55,0.00015178,2]
[353532280,1739898653618,-945.88,0.0001526,2]
[353532281,1739898653627,-584.44,0.0001526,2]
[353532282,1739898653636,-500.0,0.0001526,2]
[353532283,1739898653645,-664.52,0.0001526,2]
[353532284,1739898653655,-574.95,0.0001526,2]
[353532285,1739898653668,-702.57,0.0001526,2]
[353532286,1739898653678,-981.85,0.0001526,2]
[353532287,1739898653687,-151.0,0.0001526,2]
[353532288,1739898653697,-619.68,0.0001526,2]
[353532289,1739898653707,-682.0,0.0001526,2]
[353532290,1739898653718,-3548.2,0.0001526,2]
[353532291,1739898653727,-7845.41,0.0001526,2]
[353532293,1739898653736,-565.74,0.0001526,2]
[353532294,1739898653746,-1623.78,0.0001526,2]
[353532296,1739898653755,-1530.37,0.0001526,2]
[353532298,1739898653764,-765.7,0.0001526,2]
[353532300,1739898653774,-631.0,0.0001526,2]
[353532302,1739898653782,-1020.78,0.0001526,2]
[353532304,1739898653795,-19999.28,0.0001526,2]
[353532306,1739898653805,-1171.12,0.0001526,2]
[353532308,1739898653814,-1514.71,0.0001526,2]
[353532310,1739898653825,-1010.39,0.0001526,2]
[353532312,1739898653835,-500.0,0.0001526,2]
[353532314,1739898653845,-7675.54,0.0001526,2]
[353532316,1739898653855,-500.89,0.0001526,2]
[353532318,1739898653865,-1053.24,0.0001526,2]
[353532320,1739898653874,-3173.76,0.0001526,2]
[353532322,1739898653883,-1063.36,0.0001526,2]
[353532324,1739898653890,-1647.22,0.0001526,2]
[353532326,1739898653901,-847.48,0.0001526,2]
[353532328,1739898653908,-949.76,0.0001526,2]
[353532331,1739898653918,-624.01,0.0001526,2]
[353532333,1739898653926,-794.33,0.0001526,2]
[353532335,1739898653936,-968.84,0.0001526,2]
[353532337,1739898653944,-500.0,0.0001526,2]
[353532339,1739898653953,-2130.02,0.0001526,2]
[353532341,1739898653961,-823.55,0.0001526,2]
[353532343,1739898653968,-150.27,0.00015319,2]
[353532345,1739898653977,-500.0,0.00015319,2]
[353532347,1739898653986,-500.0,0.00015319,2]
[353532349,1739898653994,-500.0,0.00015319,2]
[353532351,1739898654003,-989.42284431,0.00015319,2]
[353532353,1739898654013,-650.47016863,0.00015319,2]
[353532355,1739898654022,-1000.0,0.00015321,2]
[353532357,1739898654031,-945.88,0.00015342,2]
[353532359,1739898654041,-584.44,0.00015342,2]
[353532361,1739898654050,-500.0,0.00015342,2]
[353532362,1739898654059,-664.52,0.00015342,2]
[353532364,1739898654069,-574.95,0.00015342,2]
[353532366,1739898654078,-702.57,0.00015342,2]
[353532368,1739898654087,-981.85,0.00015342,2]
[353532370,1739898654096,-619.68,0.00015342,2]
[353532372,1739898654106,-682.0,0.00015342,2]
[353532374,1739898654115,-3548.2,0.00015342,2]
[353532376,1739898654124,-7845.41,0.00015342,2]
[353532378,1739898654133,-565.74,0.00015342,2]
[353532380,1739898654141,-1623.78,0.00015342,2]
[353532382,1739898654151,-1530.37,0.00015342,2]
[353532392,1739898654228,-765.7,0.00015342,2]
[353532394,1739898654237,-631.0,0.00015342,2]
[353532396,1739898654247,-1020.78,0.00015342,2]
[353532398,1739898654258,-19999.28,0.00015342,2]
[353532400,1739898654267,-1171.12,0.00015342,2]
[353532402,1739898654278,-1514.71,0.00015342,2]
[353532404,1739898654287,-1010.39,0.00015342,2]
[353532406,1739898654297,-500.0,0.00015342,2]
[353532408,1739898654307,-7675.54,0.00015342,2]
[353532410,1739898654316,-500.89,0.00015342,2]
[353532412,1739898654326,-1053.24,0.00015342,2]
[353532414,1739898654335,-3173.76,0.00015342,2]
[353532416,1739898654344,-1063.36,0.00015342,2]
[353532418,1739898654353,-1647.22,0.00015342,2]
[353532420,1739898654363,-847.48,0.00015342,2]
[353532422,1739898654372,-949.76,0.00015342,2]
[353532424,1739898654381,-624.01,0.00015342,2]
[353532426,1739898654390,-794.33,0.00015342,2]
[353532428,1739898654399,-968.84,0.00015342,2]
[353532429,1739898654409,-500.0,0.00015342,2]
[353532432,1739898654419,-2130.02,0.00015342,2]
[353532434,1739898654427,-823.55,0.00015342,2]
[353532436,1739898654436,-426.04490927,0.00015385,2]
[353532438,1739898654445,-500.16756516,0.00015421,2]
[353532439,1739898654454,-945.88,0.00015424,2]
[353532441,1739898654464,-584.44,0.00015424,2]
[353532443,1739898654473,-500.0,0.00015424,2]
[353532445,1739898654482,-664.52,0.00015424,2]
[353532447,1739898654492,-574.95,0.00015424,2]
[353532449,1739898654501,-702.57,0.00015424,2]
[353532451,1739898654510,-981.85,0.00015424,2]
[353532453,1739898654519,-619.68,0.00015424,2]
[353532455,1739898654528,-682.0,0.00015424,2]
[353532457,1739898654537,-3548.2,0.00015424,2]
[353532459,1739898654548,-3410.21468812,0.00015424,2]
[353532462,1739898654562,-3455.07011468,0.00015424,2]
[353532469,1739898654613,-457.26856178,0.00013698,2]
[353532471,1739898654622,-980.1251972,0.00015424,2]
[353532473,1739898654632,-376.93899316,0.00015424,2]
[353532475,1739898654643,-188.80100684,0.00015424,2]
[353532477,1739898654652,-1031.19899316,0.00015424,2]
[353532491,1739898654772,-396.0,0.00014501,2]
[353532493,1739898654782,-592.58100684,0.00015424,2]
[353532495,1739898654793,-1530.37,0.00015424,2]
[353532497,1739898654804,-765.7,0.00015424,2]
[353532499,1739898654814,-574.81568297,0.00015424,2]
[353532501,1739898654826,-56.18431703,0.00015424,2]
[353532503,1739898654835,-508.05568297,0.00015424,2]
[353532505,1739898654847,-512.72431703,0.00015424,2]
[353532507,1739898654856,-15113.66191781,0.00015424,2]
[353532510,1739898654877,-1667.12422677,0.00015424,2]
[353532512,1739898654889,-684.13884268,0.00015424,2]
[353532514,1739898654901,-2534.35501274,0.00015424,2]
[353532517,1739898654911,-1171.12,0.00015424,2]
[353532519,1739898654921,-1514.71,0.00015424,2]
[353532521,1739898654931,-572.90545317,0.00015424,2]
[353532525,1739898654966,-437.48454683,0.00015424,2]
[353532527,1739898654976,-93.74971657,0.00015424,2]
[353532529,1739898654987,-406.25028343,0.00015424,2]
[353532531,1739898654997,-1229.88685987,0.00015424,2]
[353532534,1739898655009,-6445.65314013,0.00015424,2]
[353532536,1739898655018,-500.89,0.00015424,2]
[353532538,1739898655027,-1053.24,0.00015424,2]
[353532539,1739898655036,-3173.76,0.00015424,2]
[353532541,1739898655046,-1063.36,0.00015424,2]
[353532543,1739898655055,-1647.22,0.00015424,2]
[353532545,1739898655065,-847.48,0.00015424,2]
[353532547,1739898655074,-949.76,0.00015424,2]
[353532549,1739898655084,-624.01,0.00015424,2]
[353532551,1739898655094,-794.33,0.00015424,2]
[353532554,1739898655104,-968.84,0.00015424,2]
[353532556,1739898655113,-500.0,0.00015424,2]
[353532558,1739898655123,-2130.02,0.00015424,2]
[353532560,1739898655133,-823.55,0.00015424,2]
[353532561,1739898655143,-945.88,0.00015506,2]
[353532563,1739898655152,-584.44,0.00015506,2]
[353532565,1739898655162,-500.0,0.00015506,2]
[353532567,1739898655171,-664.52,0.00015506,2]
[353532569,1739898655180,-574.95,0.00015506,2]
[353532571,1739898655189,-702.57,0.00015506,2]
[353532573,1739898655198,-981.85,0.00015506,2]
[353532575,1739898655208,-619.68,0.00015506,2]
[353532577,1739898655217,-682.0,0.00015506,2]
[353532579,1739898655227,-3548.2,0.00015506,2]
[353532581,1739898655237,-7845.41,0.00015506,2]
[353532583,1739898655247,-565.74,0.00015506,2]
[353532585,1739898655257,-1623.78,0.00015506,2]
[353532587,1739898655267,-1530.37,0.00015506,2]
[353532589,1739898655278,-765.7,0.00015506,2]
[353532592,1739898655288,-631.0,0.00015506,2]
[353532593,1739898655298,-1020.78,0.00015506,2]
[353532596,1739898655308,-19999.28,0.00015506,2]
[353532598,1739898655318,-1171.12,0.00015506,2]
[353532599,1739898655327,-1514.71,0.00015506,2]
[353532601,1739898655336,-1010.39,0.00015506,2]
[353532603,1739898655345,-500.0,0.00015506,2]
[353532605,1739898655354,-7675.54,0.00015506,2]
[353532613,1739898655423,-500.89,0.00015506,2]
[353532615,1739898655433,-1053.24,0.00015506,2]
[353532617,1739898655443,-3173.76,0.00015506,2]
[353532619,1739898655452,-1063.36,0.00015506,2]
[353532621,1739898655463,-1647.22,0.00015506,2]
[353532623,1739898655472,-847.48,0.00015506,2]
[353532626,1739898655482,-949.76,0.00015506,2]
[353532628,1739898655492,-624.01,0.00015506,2]
[353532630,1739898655501,-794.33,0.00015506,2]
[353532631,1739898655511,-968.84,0.00015506,2]
[353532633,1739898655521,-633.37361044,0.00015506,2]
[353532635,1739898655531,-2130.02,0.00015506,2]
[353532637,1739898655542,-823.55,0.00015506,2]
[353532639,1739898655552,-945.95,0.00015589,2]
[353532641,1739898655562,-584.502169,0.00015589,2]
[353532643,1739898655571,-489.60678613,0.00015589,2]
[353532645,1739898655581,-664.73740397,0.00015589,2]
[353532647,1739898655591,-575.02,0.00015589,2]
[353532649,1739898655600,-702.57588353,0.00015589,2]
[353532651,1739898655609,-981.92510979,0.00015589,2]
[353532653,1739898655619,-151.0,0.00015589,2]
[353532656,1739898655628,-619.79599559,0.00015589,2]
[353532658,1739898655637,-682.16,0.00015589,2]
[353532660,1739898655648,-3548.29957478,0.00015589,2]
[353532662,1739898655657,-7845.58600711,0.00015589,2]
[353532664,1739898655667,-565.85012969,0.00015589,2]
[353532665,1739898655677,-1623.78,0.00015589,2]
[353532667,1739898655687,-1530.60750106,0.00015589,2]
[353532669,1739898655696,-765.79203493,0.00015589,2]
[353532671,1739898655706,-631.01468948,0.00015589,2]
[353532674,1739898655719,-1020.863832,0.00015589,2]
[353532676,1739898655728,-19999.51566337,0.00015589,2]
[353532678,1739898655738,-1171.34326697,0.00015589,2]
[353532680,1739898655747,-1514.79832623,0.00015589,2]
[353532682,1739898655757,-1010.56559573,0.00015589,2]
[353532684,1739898655767,-268.78699798,0.00015589,2]
[353532686,1739898655776,-7675.67964308,0.00015589,2]
[353532688,1739898655785,-501.02432996,0.00015589,2]
[353532690,1739898655798,-1053.45142061,0.00015589,2]
[353532692,1739898655806,-3173.94164073,0.00015589,2]
[353532694,1739898655815,-1063.41,0.00015589,2]
[353532695,1739898655824,-1647.22771993,0.00015589,2]
[353532697,1739898655834,-847.63,0.00015589,2]
[353532699,1739898655844,-949.80269851,0.00015589,2]
[353532702,1739898655853,-624.18,0.00015589,2]
[353532704,1739898655863,-794.44729932,0.00015589,2]
[353532706,1739898655872,-968.89905422,0.00015589,2]
[353532708,1739898655882,-2130.22644128,0.00015589,2]
[353532710,1739898655892,-823.60443743,0.00015589,2]
[353532712,1739898655902,-299.51368923,0.00015593,2]
[353532714,1739898655910,-500.0,0.00015593,2]
[353532716,1739898655919,-500.0,0.00015593,2]
[353532718,1739898655927,-113.02789707,0.00015593,2]
[353533645,1739899324194,400.0,9.041e-05,2]
[353533647,1739899400812,500.0,0.00017584,120]
[353533648,1739899426167,1000.0,0.00017584,120]
[353533649,1739899456865,315.0,0.00017584,120]
[353533650,1739899625140,-682.36422614,0.00012713,2]
[353533651,1739899625165,-300.0,0.00012841,2]
[353533652,1739899625193,-281.95285134,0.00012842,2]
[353533653,1739899636126,-281.20317066,0.00012842,2]
[353533654,1739899640124,-680.88569425,0.00012842,2]
[353533655,1739899641138,-494.11521509,0.00012842,2]
[353533656,1739899643096,-8140.7388828,0.00012842,2]
[353533657,1739899717865,1039.66185671,0.00017585,90]
[353533708,1739899832546,-300.0,0.00012437,2]
[353533710,1739899832557,-342.81278503,0.00012437,2]
[353533712,1739899832567,-500.0,0.00012437,2]
[353533714,1739899832576,-262.63788602,0.00012437,2]
[353533716,1739899832586,-502.75258138,0.00012437,2]
[353533718,1739899832596,-38132.39664911,0.00012438,5]
[353533721,1739899832607,-2570.85430832,0.00012438,5]
[353533723,1739899832618,-11306.4835127,0.00012438,5]
[353533725,1739899832629,-474.255,0.00012438,5]
[353533729,1739899832657,-53978.04305025,0.00012438,5]
[353533731,1739899832667,-2386.32759501,0.00012438,5]
[353533733,1739899832678,-538.37904333,0.00012438,5]
[353533735,1739899832688,-1158.48594667,0.00012438,2]
[353533772,1739899838357,-500.0,0.00012437,2]
[353533773,1739899838367,-500.0,0.00012437,2]
[353533774,1739899838376,-152.40806877,0.00012437,2]
[353533775,1739899838385,-162.4041194,0.00012437,2]
[353533776,1739899838394,-412.833142,0.00012437,2]
[353533777,1739899838404,-500.0,0.00012437,2]
[353533778,1739899838413,-500.0,0.00012437,2]
[353533779,1739899838422,-500.0,0.00012437,2]
[353533780,1739899838431,-266.41890933,0.00012437,2]
[353533781,1739899838441,-500.0,0.00012437,2]
[353533782,1739899838450,-500.0,0.00012437,2]
[353533783,1739899838459,-500.0,0.00012437,2]
[353533784,1739899838469,-500.0,0.00012437,2]
[353533785,1739899838478,-500.0,0.00012437,2]
[353533786,1739899838487,-7120521.13504477,0.00012438,2]
[353533787,1739899838499,-951.8999999,0.00012438,2]
[353533788,1739899838515,-99035.70703152,0.00012438,2]
[353533789,1739899838526,-25233.93338439,0.00012438,2]
[353533790,1739899838540,-3209.59150975,0.00012438,2]
[353533791,1739899838552,-5313.51917313,0.00012438,2]
[353533792,1739899838565,-2088.11851568,0.00012438,2]
[353533793,1739899838577,-448.71263582,0.00012438,2]
[353533818,1739899840688,-45290.65947638,0.00012438,2]
[353533819,1739899840753,-398.15093894,0.00012438,2]
[353533820,1739899840764,-2600.021664,0.00012438,2]
[353533879,1739899843505,-945.0,0.00012438,2]
[353533880,1739899843562,-182404.37792692,0.00012438,2]
[353533885,1739899846467,-5000.76202728,0.00012438,2]
[353533886,1739899846479,-945.8,0.00012438,2]
[353533887,1739899846490,-71410.7517505,0.00012438,2]
[353533888,1739899877669,1401.37737563,0.00017585,60]
[353533889,1739900307798,3014.79896139,0.000105,2]
[353533891,1739900421336,400.0,9.041e-05,2]
[353533892,1739900754099,-177.13927472,0.00011934,2]
[353533893,1739900754120,-625.99566137,0.00012055,2]
[353533894,1739900839129,-675.93961025,0.00012054,2]
[353533895,1739900842117,-124.4644897,0.00012054,2]
[353533896,1739900842139,-300.0,0.00012176,2]
[353533897,1739900842161,-1270.26788827,0.00012177,2]
[353533898,1739900847084,-2000.39859534,0.00012177,2]
[353533899,1739900851125,-595.00010802,0.00012177,2]
[353533900,1739900854082,-1323.64954049,0.00012177,2]
[353533901,1739900957179,-300.0,0.00012176,2]
[353533902,1739900957201,-19710.68386788,0.00012177,2]
[353533903,1739900957221,-62.87910688,0.00012338,2]
[353533965,1739901032662,-165.09926943,0.00012338,2]
[353533967,1739901032674,-1198.76073357,0.00012338,2]
[353533972,1739901032716,-488.90543611,0.00012338,2]
[353534043,1739901036684,-1159.40690532,0.00012338,2]
[353534044,1739901036694,-484.30424049,0.00012356,2]
[353534045,1739901036705,-942.2,0.00012356,2]
[353534046,1739901036738,-1420.56883451,0.00012356,2]
[353534047,1739901036748,-203.45255332,0.00012437,2]
[353534048,1739901036757,-621.71494824,0.00012437,2]
[353534049,1739901036767,-529.60210104,0.00012437,2]
[353534050,1739901036776,-300.0,0.00012437,2]
[353534051,1739901036786,-76527.24714949,0.00012438,2]
[353534052,1739901036799,-58371.62166106,0.00012438,2]
[353534063,1739901038522,-3792.78053804,0.00012438,2]
[353534064,1739901038577,-2079.99147856,0.00012438,2]
[353534065,1739901038588,-79000.0,0.00012438,2]
[353534066,1739901038601,-491992.06181128,0.00012438,2]
[353534318,1739901042970,-2847.073075,0.00012373,2]
[353534320,1739901042980,-24673.26354115,0.00012438,2]
[353534446,1739901043751,-273.00043512,0.00012407,2]
[353534447,1739901043811,-253.94316365,0.00012407,2]
[353534452,1739901043872,-4955.70486063,0.00012407,2]
[353534454,1739901043882,-116060.65791773,0.00012438,2]
[353534456,1739901043894,-9672.09999999,0.00012438,2]
[353534586,1739901046590,-1885.2,0.00012438,2]
[353534588,1739901046603,-67856.58896192,0.00012438,2]
[353534589,1739901046615,-43989.24809082,0.00012438,2]
[353534590,1739901046646,-53231.60460261,0.00012438,2]
[353534591,1739901046657,-16100.0,0.00012438,2]
[353534592,1739901046668,-1651.2125,0.00012438,2]
[353534595,1739901696334,-300.0,0.00010853,2]
[353534596,1739901696357,-700.0,0.00010963,2]
[353534597,1739901791267,400.0,9.041e-05,2]
[353534599,1739901930175,-798.50515478,0.00010744,2]
[353534600,1739901995021,5000.0,0.000105,2]
[353534601,1739902009903,3667.32895604,0.000105,2]
[353534602,1739902027079,-312.44648334,0.00010637,2]
[353534603,1739902027100,-196.2744193,0.00011528,2]
[353534604,1739902027123,-495.525,0.00012189,2]
[353534605,1739902027149,-295.92765306,0.00012338,2]
[353534606,1739902029123,-668.41497757,0.00012338,2]
[353534607,1739902031097,-422.07045532,0.00012338,2]
[353534608,1739902031119,-86.47749182,0.00012338,2]
[353534609,1739902049128,-238.25660721,0.00012338,2]
[353534610,1739902049151,-2345.80972682,0.00012338,2]
[353534611,1739902053090,-654.19027318,0.00012338,2]
[353534612,1739902053113,-300.0,0.00012435,2]
[353534613,1739902053135,-500.0,0.00012436,2]
[353534614,1739902053163,-500.0,0.00012436,2]
[353534615,1739902053187,-500.0,0.00012436,2]
[353534616,1739902053209,-493.12678468,0.00012436,2]
[353534617,1739902053231,-500.0,0.00012436,2]
[353534618,1739902053255,-389.28062242,0.00012436,2]
[353534619,1739902053282,-500.0,0.00012436,2]
[353534620,1739902053308,-500.0,0.00012436,2]
[353534621,1739902053331,-367.36193748,0.00012436,2]
[353534622,1739902053355,-226.74590759,0.00012436,2]
[353534623,1739902053378,-500.0,0.00012436,2]
[353534624,1739902053402,-500.0,0.00012436,2]
[353534625,1739902053427,-500.0,0.00012436,2]
[353534626,1739902053452,-500.0,0.00012436,2]
[353534627,1739902053477,-500.0,0.00012436,2]
[353534628,1739902053499,-500.0,0.00012436,2]
[353534629,1739902053524,-500.0,0.00012436,2]
[353534630,1739902053548,-500.0,0.00012436,2]
[353534631,1739902053704,-500.0,0.00012436,2]
[353534632,1739902053731,-500.0,0.00012436,2]
[353534633,1739902053753,-500.0,0.00012436,2]
[353534634,1739902053776,-500.0,0.00012436,2]
[353534635,1739902053800,-500.0,0.00012436,2]
[353534636,1739902053824,-160.30136002,0.00012436,2]
[353534701,1739902231932,-300.0,0.00011436,2]
[353534703,1739902231944,-210.21168058,0.00011437,2]
[353534705,1739902231956,-9515.05165695,0.00011437,2]
[353534709,1739902231985,-15174.73666247,0.00011437,2]
[353534711,1739902231994,-193.76226367,0.00012338,2]
[353534713,1739902232003,-3000.0,0.00012338,2]
[353534715,1739902232014,-691.73928813,0.00012437,2]
[353534717,1739902232024,-500.0,0.00012437,2]
[353534719,1739902232034,-500.0,0.00012437,2]
[353534721,1739902232043,-500.0,0.00012437,2]
[353534723,1739902232053,-214.7378833,0.00012437,2]
[353534725,1739902232062,-500.0,0.00012437,2]
[353534727,1739902232071,-500.0,0.00012437,2]
[353534729,1739902232081,-500.0,0.00012437,2]
[353534731,1739902232090,-500.0,0.00012437,2]
[353534732,1739902232100,-355.53052791,0.00012437,2]
[353534735,1739902232111,-500.0,0.00012437,2]
[353534737,1739902232121,-500.0,0.00012437,2]
[353534738,1739902232131,-500.0,0.00012437,2]
[353534740,1739902232140,-500.0,0.00012437,2]
[353534742,1739902232150,-500.0,0.00012437,2]
[353534744,1739902232160,-621.44082717,0.00012437,2]
[353534746,1739902232170,-500.0,0.00012437,2]
[353534748,1739902232180,-500.0,0.00012437,2]
[353534750,1739902232189,-500.0,0.00012437,2]
[353534752,1739902232199,-500.0,0.00012437,2]
[353534754,1739902232209,-300.7761143,0.00012437,2]
[353534827,1739902238060,-344.20013777,0.00012437,2]
[353534829,1739902238070,-266.8048862,0.00012437,2]
[353534832,1739902238080,-2930.84148076,0.00012438,5]
[353534834,1739902238091,-65463.05117334,0.00012438,5]
[353534836,1739902238100,-3270.50888327,0.00012438,5]
[353534838,1739902238109,-10516.43994339,0.00012438,2]
[353534840,1739902238120,-49025.67695219,0.00012438,2]
[353534842,1739902238132,-491992.06181128,0.00012438,2]
[353534844,1739902238143,-3101.76260512,0.00012438,2]
[353534856,1739902238239,-36872.85457377,0.00012438,2]
[353534867,1739902238497,-1343.44520949,0.00012438,2]
[353535038,1739902240134,-32.801,0.00012438,2]
[353535049,1739902240223,-328756.51262646,0.00012438,2]
[353535051,1739902240232,-63349.65928839,0.00012438,2]
[353535053,1739902240243,-1253.0764494,0.00012438,2]
[353535301,1739902242911,-938.89,0.00012438,2]
[353535302,1739902242967,-1907.92801108,0.00012438,2]
[353535334,1739902245805,-939.7,0.00012438,2]